[Event "Late-Titled-Tuesday-Blitz-April-16-2024"]
[Site "Chess.com"]
[Date "2024.04.16"]
[Round "7"]
[White "Byniolus"]
[Black "djano"]
[Result "1-0"]
[WhiteElo "2836"]
[BlackElo "2619"]
[TimeControl "180+1"]
[EndTime "15:14:07 PDT"]
[Termination "Byniolus won by resignation"]

1. d4 {[%clk 0:03:00.9]} 1... d6 {[%clk 0:02:58.4]} 2. Nf3 {[%clk 0:03:01.3]}
2... g6 {[%clk 0:02:57.1]} 3. Bf4 {[%clk 0:03:02]} 3... Bg7 {[%clk 0:02:57.2]}
4. e3 {[%clk 0:03:02.7]} 4... Nd7 {[%clk 0:02:55.1]} 5. h3 {[%clk 0:03:02.8]}
5... e5 {[%clk 0:02:54.8]} 6. Bh2 {[%clk 0:03:03.2]} 6... Nh6 {[%clk 0:02:44.6]}
7. Be2 {[%clk 0:03:02.4]} 7... O-O {[%clk 0:02:44.8]} 8. O-O {[%clk 0:03:02.5]}
8... b6 {[%clk 0:02:42.3]} 9. c3 {[%clk 0:03:00.3]} 9... Bb7 {[%clk 0:02:42]}
10. a4 {[%clk 0:02:58.8]} 10... e4 {[%clk 0:02:32.1]} 11. Nfd2 {[%clk
0:02:58.3]} 11... a6 {[%clk 0:02:23.9]} 12. c4 {[%clk 0:02:54.2]} 12... f5
{[%clk 0:02:20.5]} 13. Nc3 {[%clk 0:02:53.6]} 13... Nf7 {[%clk 0:01:59]} 14. a5
{[%clk 0:02:51.9]} 14... bxa5 {[%clk 0:01:52.2]} 15. Qa4 {[%clk 0:02:49.5]}
15... Qg5 {[%clk 0:01:41.1]} 16. Qxa5 {[%clk 0:02:47.2]} 16... Nb6 {[%clk
0:01:23.6]} 17. c5 {[%clk 0:02:21.4]} 17... dxc5 {[%clk 0:01:10.4]} 18. Qxc5
{[%clk 0:02:22.3]} 18... Rac8 {[%clk 0:00:37.9]} 19. Bxa6 {[%clk 0:02:15.9]}
19... Bxa6 {[%clk 0:00:36.7]} 20. Rxa6 {[%clk 0:02:16.8]} 20... Qh4 {[%clk
0:00:27.5]} 21. Ra7 {[%clk 0:01:47.7]} 21... Nd7 {[%clk 0:00:26.2]} 22. Qc6
{[%clk 0:01:37]} 22... Nf6 {[%clk 0:00:26.3]} 23. Rxc7 {[%clk 0:01:28.6]} 23...
Rxc7 {[%clk 0:00:26.6]} 24. Qxc7 {[%clk 0:01:29.5]} 24... g5 {[%clk 0:00:26.8]}
25. Ra1 {[%clk 0:01:17]} 25... Qh5 {[%clk 0:00:26.8]} 26. Nc4 {[%clk 0:00:53.5]}
26... f4 {[%clk 0:00:23.3]} 27. Ne5 {[%clk 0:00:46.1]} 27... f3 {[%clk
0:00:19.7]} 28. Ra7 {[%clk 0:00:38.2]} 28... fxg2 {[%clk 0:00:18.8]} 29. Nxf7
{[%clk 0:00:32.4]} 29... Qxh3 {[%clk 0:00:15.6]} 30. Nxg5 {[%clk 0:00:22.1]}
30... Qh6 {[%clk 0:00:12.3]} 31. Qxg7+ {[%clk 0:00:20.7]} 31... Qxg7 {[%clk
0:00:13.2]} 32. Rxg7+ {[%clk 0:00:20.7]} 1-0

[Event "Late-Titled-Tuesday-Blitz-April-16-2024"]
[Site "Chess.com"]
[Date "2024.04.16"]
[Round "7"]
[White "Bykov_Egor"]
[Black "kingofthenil"]
[Result "0-1"]
[WhiteElo "2604"]
[BlackElo "2800"]
[TimeControl "180+1"]
[EndTime "15:14:07 PDT"]
[Termination "kingofthenil won by resignation"]

1. d4 {[%clk 0:02:57.5]} 1... d5 {[%clk 0:02:39.6]} 2. c4 {[%clk 0:02:56.7]}
2... e6 {[%clk 0:02:40.2]} 3. Nf3 {[%clk 0:02:56.6]} 3... Nf6 {[%clk 0:02:40.1]}
4. Nc3 {[%clk 0:02:57.2]} 4... h6 {[%clk 0:02:40.3]} 5. Qc2 {[%clk 0:02:50.1]}
5... Nc6 {[%clk 0:02:32.9]} 6. cxd5 {[%clk 0:02:47.4]} 6... exd5 {[%clk
0:02:32.6]} 7. Bf4 {[%clk 0:02:45]} 7... Bd6 {[%clk 0:02:32.3]} 8. Bxd6 {[%clk
0:02:42.5]} 8... Qxd6 {[%clk 0:02:33.2]} 9. e3 {[%clk 0:02:42.6]} 9... O-O
{[%clk 0:02:33.2]} 10. a3 {[%clk 0:02:38.3]} 10... Bg4 {[%clk 0:02:32.1]} 11.
Be2 {[%clk 0:02:32.2]} 11... Bxf3 {[%clk 0:02:09.4]} 12. Bxf3 {[%clk 0:02:33.1]}
12... Ne7 {[%clk 0:02:09.7]} 13. O-O {[%clk 0:02:25.8]} 13... c6 {[%clk
0:02:09.8]} 14. b4 {[%clk 0:02:24.1]} 14... a6 {[%clk 0:02:05.9]} 15. Na4 {[%clk
0:02:16]} 15... Nc8 {[%clk 0:02:05.9]} 16. Nc5 {[%clk 0:02:13.5]} 16... Qe7
{[%clk 0:02:05.5]} 17. e4 {[%clk 0:01:58.7]} 17... dxe4 {[%clk 0:02:04.3]} 18.
Nxe4 {[%clk 0:01:59.3]} 18... Nxe4 {[%clk 0:01:59.3]} 19. Bxe4 {[%clk
0:02:00.2]} 19... Nd6 {[%clk 0:01:58.7]} 20. Bf3 {[%clk 0:01:57.1]} 20... Rad8
{[%clk 0:01:52.9]} 21. Rfd1 {[%clk 0:01:38.2]} 21... Qf6 {[%clk 0:01:48.8]} 22.
d5 {[%clk 0:01:33.6]} 22... cxd5 {[%clk 0:01:31.2]} 23. Bxd5 {[%clk 0:01:34.5]}
23... Rfe8 {[%clk 0:01:31.4]} 24. Rac1 {[%clk 0:01:16.8]} 24... Nb5 {[%clk
0:01:29.7]} 25. Qd3 {[%clk 0:01:13.7]} 25... Rd7 {[%clk 0:00:53.5]} 26. a4
{[%clk 0:00:23]} 26... Nd4 {[%clk 0:00:52]} 27. Qxd4 {[%clk 0:00:17.3]} 27...
Re1+ {[%clk 0:00:52.1]} 28. Rxe1 {[%clk 0:00:17.9]} 28... Qxd4 {[%clk
0:00:52.7]} 29. Be4 {[%clk 0:00:16.6]} 29... g6 {[%clk 0:00:50.6]} 30. Rb1
{[%clk 0:00:15.1]} 30... Re7 {[%clk 0:00:48.6]} 31. Bf3 {[%clk 0:00:10.2]} 31...
Rxe1+ {[%clk 0:00:43.5]} 32. Rxe1 {[%clk 0:00:11.1]} 32... Qxb4 {[%clk 0:00:44]}
33. Re8+ {[%clk 0:00:11.5]} 33... Kg7 {[%clk 0:00:43.9]} 34. g3 {[%clk
0:00:12.4]} 34... Qxa4 {[%clk 0:00:43.6]} 35. Rb8 {[%clk 0:00:13]} 35... b5
{[%clk 0:00:42.6]} 36. Rb7 {[%clk 0:00:13.1]} 36... Qa1+ {[%clk 0:00:41.6]} 37.
Kg2 {[%clk 0:00:13]} 37... Qd4 {[%clk 0:00:42.5]} 38. Rb6 {[%clk 0:00:10.3]}
38... Qxb6 {[%clk 0:00:42.1]} 0-1

[Event "Late-Titled-Tuesday-Blitz-April-16-2024"]
[Site "Chess.com"]
[Date "2024.04.16"]
[Round "7"]
[White "steepedgames"]
[Black "Ramil_Faizrakhmanov"]
[Result "0-1"]
[WhiteElo "2498"]
[BlackElo "2876"]
[TimeControl "180+1"]
[EndTime "15:14:12 PDT"]
[Termination "Ramil_Faizrakhmanov won on time"]

1. d4 {[%clk 0:03:00.9]} 1... Nf6 {[%clk 0:02:59.3]} 2. Bg5 {[%clk 0:03:00]}
2... d5 {[%clk 0:02:59.3]} 3. Bxf6 {[%clk 0:02:59.8]} 3... exf6 {[%clk 0:02:57]}
4. c4 {[%clk 0:03:00.7]} 4... dxc4 {[%clk 0:02:56.8]} 5. Nc3 {[%clk 0:03:00.1]}
5... c6 {[%clk 0:02:53.4]} 6. a4 {[%clk 0:02:55.2]} 6... Bb4 {[%clk 0:02:52.1]}
7. e3 {[%clk 0:02:53.9]} 7... Be6 {[%clk 0:02:50.8]} 8. Ne2 {[%clk 0:02:52.6]}
8... Nd7 {[%clk 0:02:43]} 9. Nf4 {[%clk 0:02:51]} 9... Nb6 {[%clk 0:02:43.2]}
10. Be2 {[%clk 0:02:15.8]} 10... Nd5 {[%clk 0:02:41.8]} 11. Nxe6 {[%clk
0:02:09.9]} 11... fxe6 {[%clk 0:02:42.3]} 12. O-O {[%clk 0:01:50.8]} 12... Bxc3
{[%clk 0:02:40.9]} 13. bxc3 {[%clk 0:01:51.6]} 13... Nxc3 {[%clk 0:02:41.2]} 14.
Qc2 {[%clk 0:01:45.5]} 14... Nxe2+ {[%clk 0:02:40.3]} 15. Qxe2 {[%clk
0:01:46.4]} 15... Qd5 {[%clk 0:02:35.7]} 16. Rfd1 {[%clk 0:01:32]} 16... b5
{[%clk 0:02:24]} 17. e4 {[%clk 0:01:30.4]} 17... Qd7 {[%clk 0:02:24.4]} 18. d5
{[%clk 0:01:28]} 18... O-O {[%clk 0:02:24]} 19. dxc6 {[%clk 0:01:25.6]} 19...
Qxc6 {[%clk 0:02:24.9]} 20. axb5 {[%clk 0:01:25.8]} 20... Qxb5 {[%clk
0:02:25.5]} 21. Rd6 {[%clk 0:01:15.7]} 21... a5 {[%clk 0:02:08.4]} 22. Rxe6
{[%clk 0:01:12.8]} 22... a4 {[%clk 0:02:08.4]} 23. h3 {[%clk 0:01:07.8]} 23...
a3 {[%clk 0:02:07.2]} 24. Ra2 {[%clk 0:00:57.4]} 24... Qb1+ {[%clk 0:01:57.5]}
25. Kh2 {[%clk 0:00:56.3]} 25... Rfc8 {[%clk 0:01:50.6]} 26. Re7 {[%clk
0:00:54.9]} 26... Qb8+ {[%clk 0:01:43.7]} 27. g3 {[%clk 0:00:48.4]} 27... Ra7
{[%clk 0:01:40.6]} 28. Rxa7 {[%clk 0:00:30.9]} 28... Qxa7 {[%clk 0:01:41.5]} 29.
Qc2 {[%clk 0:00:31.2]} 29... c3 {[%clk 0:01:31.1]} 30. Qb3+ {[%clk 0:00:25.1]}
30... Kh8 {[%clk 0:01:27.9]} 31. Qe6 {[%clk 0:00:19.5]} 31... Qc5 {[%clk
0:01:22.1]} 32. Rc2 {[%clk 0:00:19.5]} 32... h6 {[%clk 0:01:20.3]} 33. h4 {[%clk
0:00:19.5]} 33... Qc4 {[%clk 0:01:18.4]} 34. Qd7 {[%clk 0:00:14.1]} 34... a2
{[%clk 0:00:55.4]} 35. Rxa2 {[%clk 0:00:07.5]} 35... c2 {[%clk 0:00:55.3]} 36.
Ra7 {[%clk 0:00:06.6]} 36... Rg8 {[%clk 0:00:49.9]} 37. Rc7 {[%clk 0:00:02.7]}
37... c1=Q {[%clk 0:00:50.2]} 38. Rxc4 {[%clk 0:00:01.8]} 38... Qxc4 {[%clk
0:00:51.1]} 0-1

[Event "Late-Titled-Tuesday-Blitz-April-16-2024"]
[Site "Chess.com"]
[Date "2024.04.16"]
[Round "7"]
[White "IMGC"]
[Black "IMRosen"]
[Result "1-0"]
[WhiteElo "2491"]
[BlackElo "2716"]
[TimeControl "180+1"]
[EndTime "15:14:31 PDT"]
[Termination "IMGC won on time"]

1. d4 {[%clk 0:03:00.9]} 1... d5 {[%clk 0:02:57.4]} 2. Nf3 {[%clk 0:03:01.8]}
2... Nf6 {[%clk 0:02:57.2]} 3. e3 {[%clk 0:03:02.1]} 3... c5 {[%clk 0:02:57.2]}
4. dxc5 {[%clk 0:02:59.3]} 4... e6 {[%clk 0:02:54.1]} 5. a3 {[%clk 0:02:59.4]}
5... Bxc5 {[%clk 0:02:53]} 6. b4 {[%clk 0:02:57.9]} 6... Be7 {[%clk 0:02:49.2]}
7. c4 {[%clk 0:02:58.5]} 7... O-O {[%clk 0:02:47.3]} 8. Bb2 {[%clk 0:02:56.6]}
8... a5 {[%clk 0:02:45.5]} 9. b5 {[%clk 0:02:46.5]} 9... b6 {[%clk 0:02:37.6]}
10. Nc3 {[%clk 0:02:45.7]} 10... Bb7 {[%clk 0:02:37.4]} 11. cxd5 {[%clk
0:02:39]} 11... Nxd5 {[%clk 0:02:35.4]} 12. Nxd5 {[%clk 0:02:38.5]} 12... Bxd5
{[%clk 0:02:21.7]} 13. Nd4 {[%clk 0:02:08.1]} 13... Bf6 {[%clk 0:02:09.4]} 14.
Bd3 {[%clk 0:02:00.6]} 14... Nd7 {[%clk 0:02:06.2]} 15. O-O {[%clk 0:01:56.3]}
15... Nc5 {[%clk 0:01:57.6]} 16. Bc2 {[%clk 0:01:55]} 16... Rc8 {[%clk
0:01:43.7]} 17. Rc1 {[%clk 0:01:30.9]} 17... g6 {[%clk 0:01:23]} 18. Qg4 {[%clk
0:01:26.8]} 18... Bg7 {[%clk 0:01:21.7]} 19. Rfd1 {[%clk 0:01:25.1]} 19... Qe7
{[%clk 0:01:11.2]} 20. Bb1 {[%clk 0:00:59.7]} 20... Nd7 {[%clk 0:01:03.9]} 21.
e4 {[%clk 0:00:48.9]} 21... Ne5 {[%clk 0:00:57.8]} 22. Qe2 {[%clk 0:00:42.4]}
22... Bc4 {[%clk 0:00:28.9]} 23. Qe3 {[%clk 0:00:41.5]} 23... Rfd8 {[%clk
0:00:26.2]} 24. h3 {[%clk 0:00:39.7]} 24... g5 {[%clk 0:00:10.6]} 25. a4 {[%clk
0:00:28.2]} 25... h6 {[%clk 0:00:05.8]} 26. Ba3 {[%clk 0:00:23.3]} 26... Qf6
{[%clk 0:00:06]} 27. Nc6 {[%clk 0:00:09.5]} 27... Nxc6 {[%clk 0:00:05.4]} 28.
bxc6 {[%clk 0:00:08.9]} 28... Rxd1+ {[%clk 0:00:03.1]} 29. Rxd1 {[%clk
0:00:09.8]} 29... Rxc6 {[%clk 0:00:02.3]} 30. e5 {[%clk 0:00:04.6]} 30... Qxe5
{[%clk 0:00:01.6]} 31. Rd8+ {[%clk 0:00:04.1]} 31... Bf8 {[%clk 0:00:01.5]} 32.
Qxe5 {[%clk 0:00:04.1]} 1-0

[Event "Late-Titled-Tuesday-Blitz-April-16-2024"]
[Site "Chess.com"]
[Date "2024.04.16"]
[Round "7"]
[White "masnyszachistaaa"]
[Black "jbking07"]
[Result "1-0"]
[WhiteElo "2573"]
[BlackElo "2425"]
[TimeControl "180+1"]
[EndTime "15:14:31 PDT"]
[Termination "masnyszachistaaa won by resignation"]

1. c4 {[%clk 0:02:59.3]} 1... Nf6 {[%clk 0:02:59.4]} 2. Nf3 {[%clk 0:02:56.7]}
2... e6 {[%clk 0:02:58.6]} 3. d4 {[%clk 0:02:49.9]} 3... d5 {[%clk 0:02:58.4]}
4. Nc3 {[%clk 0:02:46.9]} 4... Bb4 {[%clk 0:02:55.9]} 5. cxd5 {[%clk 0:02:28.9]}
5... exd5 {[%clk 0:02:55.1]} 6. Bg5 {[%clk 0:02:28.9]} 6... O-O {[%clk
0:02:53.9]} 7. e3 {[%clk 0:02:27.9]} 7... c6 {[%clk 0:02:53.5]} 8. Qc2 {[%clk
0:02:27]} 8... h6 {[%clk 0:02:53.4]} 9. Bh4 {[%clk 0:02:26.5]} 9... Re8 {[%clk
0:02:50.4]} 10. Bd3 {[%clk 0:02:25.7]} 10... Nbd7 {[%clk 0:02:49.4]} 11. O-O
{[%clk 0:02:25.1]} 11... Be7 {[%clk 0:02:46.3]} 12. Rab1 {[%clk 0:02:23.2]}
12... Nf8 {[%clk 0:02:37.2]} 13. b4 {[%clk 0:02:22.3]} 13... a6 {[%clk
0:02:35.2]} 14. a4 {[%clk 0:02:22.2]} 14... Ne4 {[%clk 0:02:29.9]} 15. Bxe7
{[%clk 0:02:17.5]} 15... Qxe7 {[%clk 0:02:29.2]} 16. Bxe4 {[%clk 0:02:10.9]}
16... dxe4 {[%clk 0:02:30.1]} 17. Nd2 {[%clk 0:01:45.9]} 17... Bf5 {[%clk
0:02:26.7]} 18. b5 {[%clk 0:01:38.3]} 18... axb5 {[%clk 0:02:25.3]} 19. axb5
{[%clk 0:01:39.2]} 19... Ng6 {[%clk 0:02:09.7]} 20. bxc6 {[%clk 0:01:37.6]}
20... bxc6 {[%clk 0:02:10.2]} 21. Rb6 {[%clk 0:01:18.2]} 21... Nh4 {[%clk
0:01:56.7]} 22. g3 {[%clk 0:00:59.5]} 22... Bh3 {[%clk 0:01:36.8]} 23. Rc1
{[%clk 0:00:46.5]} 23... Nf3+ {[%clk 0:01:27.2]} 24. Nxf3 {[%clk 0:00:42]} 24...
exf3 {[%clk 0:01:28.1]} 25. Rxc6 {[%clk 0:00:35.9]} 25... Qa3 {[%clk 0:01:18.5]}
26. Nb5 {[%clk 0:00:28.3]} 26... Qa2 {[%clk 0:00:34.2]} 27. Nc7 {[%clk
0:00:25.6]} 27... Reb8 {[%clk 0:00:20.9]} 28. Nxa8 {[%clk 0:00:23.9]} 28... Rb2
{[%clk 0:00:20.8]} 29. Qe4 {[%clk 0:00:15.6]} 29... g6 {[%clk 0:00:14.5]} 30.
Qxf3 {[%clk 0:00:09.7]} 30... Kg7 {[%clk 0:00:10.3]} 31. g4 {[%clk 0:00:08.4]}
31... Bxg4 {[%clk 0:00:08.9]} 32. Qxg4 {[%clk 0:00:09.3]} 32... Qxa8 {[%clk
0:00:08.8]} 33. Qf3 {[%clk 0:00:07.4]} 33... Qe8 {[%clk 0:00:08.1]} 34. Qf6+
{[%clk 0:00:07.2]} 34... Kg8 {[%clk 0:00:07.6]} 35. Rc8 {[%clk 0:00:07.4]} 1-0

[Event "Late-Titled-Tuesday-Blitz-April-16-2024"]
[Site "Chess.com"]
[Date "2024.04.16"]
[Round "7"]
[White "Karttunen"]
[Black "divudis17"]
[Result "1/2-1/2"]
[WhiteElo "2690"]
[BlackElo "2576"]
[TimeControl "180+1"]
[EndTime "15:14:37 PDT"]
[Termination "Game drawn - insufficient material"]

1. e4 {[%clk 0:02:17.4]} 1... c5 {[%clk 0:02:57.6]} 2. Nf3 {[%clk 0:02:17]} 2...
Nf6 {[%clk 0:02:57.4]} 3. e5 {[%clk 0:02:16.1]} 3... Nd5 {[%clk 0:02:57.5]} 4.
Nc3 {[%clk 0:02:16.3]} 4... e6 {[%clk 0:02:57.1]} 5. Bc4 {[%clk 0:02:14]} 5...
Nb6 {[%clk 0:02:48.9]} 6. d3 {[%clk 0:02:10.5]} 6... d5 {[%clk 0:02:44.9]} 7.
exd6 {[%clk 0:02:10.4]} 7... Bxd6 {[%clk 0:02:44.9]} 8. Bg5 {[%clk 0:02:07]}
8... Be7 {[%clk 0:02:40]} 9. Bxe7 {[%clk 0:02:02.2]} 9... Qxe7 {[%clk
0:02:40.9]} 10. Qe2 {[%clk 0:01:57.5]} 10... O-O {[%clk 0:02:30.1]} 11. Bb3
{[%clk 0:01:54]} 11... Nc6 {[%clk 0:02:23.3]} 12. a3 {[%clk 0:01:53.7]} 12...
Nd4 {[%clk 0:02:10.6]} 13. Nxd4 {[%clk 0:01:53.5]} 13... cxd4 {[%clk 0:02:11.5]}
14. Ne4 {[%clk 0:01:51.2]} 14... e5 {[%clk 0:02:06.8]} 15. O-O {[%clk
0:01:48.3]} 15... Be6 {[%clk 0:02:07.2]} 16. Bxe6 {[%clk 0:01:42.2]} 16... Qxe6
{[%clk 0:02:08.1]} 17. Nc5 {[%clk 0:01:42.4]} 17... Qd5 {[%clk 0:02:01.7]} 18.
b4 {[%clk 0:01:42]} 18... f6 {[%clk 0:01:26.7]} 19. f4 {[%clk 0:01:39.3]} 19...
Nd7 {[%clk 0:01:18.8]} 20. Qe4 {[%clk 0:01:34.5]} 20... Qxe4 {[%clk 0:01:17.6]}
21. Nxe4 {[%clk 0:01:34.4]} 21... Rac8 {[%clk 0:01:15.8]} 22. Rf2 {[%clk
0:01:29.8]} 22... Rc6 {[%clk 0:01:06]} 23. fxe5 {[%clk 0:01:26.3]} 23... fxe5
{[%clk 0:01:00.9]} 24. Rxf8+ {[%clk 0:01:24.2]} 24... Nxf8 {[%clk 0:01:01.8]}
25. Rc1 {[%clk 0:01:16.8]} 25... Ne6 {[%clk 0:00:59.4]} 26. g3 {[%clk
0:01:12.7]} 26... Nc7 {[%clk 0:00:53.3]} 27. c4 {[%clk 0:01:11.1]} 27... dxc3
{[%clk 0:00:51.6]} 28. Rxc3 {[%clk 0:01:10.7]} 28... Rxc3 {[%clk 0:00:49.3]} 29.
Nxc3 {[%clk 0:01:10.8]} 29... Kf7 {[%clk 0:00:49.8]} 30. Kf2 {[%clk 0:01:10.5]}
30... b6 {[%clk 0:00:46.6]} 31. Ke3 {[%clk 0:01:10.5]} 31... Ke6 {[%clk
0:00:46.9]} 32. Ke4 {[%clk 0:01:11]} 32... Ne8 {[%clk 0:00:47.2]} 33. Ke3 {[%clk
0:01:04.3]} 33... Nd6 {[%clk 0:00:46.5]} 34. g4 {[%clk 0:01:03.9]} 34... g6
{[%clk 0:00:37.1]} 35. h3 {[%clk 0:01:03.9]} 35... h5 {[%clk 0:00:36.2]} 36. a4
{[%clk 0:01:00]} 36... a6 {[%clk 0:00:32.5]} 37. a5 {[%clk 0:00:57.5]} 37...
bxa5 {[%clk 0:00:30.8]} 38. bxa5 {[%clk 0:00:57.7]} 38... Nb7 {[%clk 0:00:30.3]}
39. Ne4 {[%clk 0:00:57.9]} 39... Nxa5 {[%clk 0:00:28.5]} 40. Nc5+ {[%clk
0:00:58.1]} 40... Kf6 {[%clk 0:00:17.2]} 41. gxh5 {[%clk 0:00:57.8]} 41... gxh5
{[%clk 0:00:17.1]} 42. Nxa6 {[%clk 0:00:58]} 42... Nc6 {[%clk 0:00:17.6]} 43.
Nc7 {[%clk 0:00:57.2]} 43... Kg5 {[%clk 0:00:17.6]} 44. Kf3 {[%clk 0:00:55.1]}
44... Kf5 {[%clk 0:00:14.7]} 45. Nd5 {[%clk 0:00:53.9]} 45... Nd4+ {[%clk
0:00:14.6]} 46. Kg3 {[%clk 0:00:53.4]} 46... e4 {[%clk 0:00:10.2]} 47. Ne3+
{[%clk 0:00:49.3]} 47... Ke5 {[%clk 0:00:08.9]} 48. Nc4+ {[%clk 0:00:49.6]}
48... Kd5 {[%clk 0:00:07.7]} 49. Nb6+ {[%clk 0:00:46.5]} 49... Kc6 {[%clk
0:00:07.8]} 50. dxe4 {[%clk 0:00:47]} 50... Kxb6 {[%clk 0:00:08]} 51. Kh4 {[%clk
0:00:47.5]} 51... Kc6 {[%clk 0:00:08.7]} 52. Kxh5 {[%clk 0:00:48]} 52... Kd6
{[%clk 0:00:09.4]} 53. Kg6 {[%clk 0:00:47.8]} 53... Ke5 {[%clk 0:00:09.9]} 54.
h4 {[%clk 0:00:48.4]} 54... Kxe4 {[%clk 0:00:10.2]} 55. h5 {[%clk 0:00:49]}
55... Nf5 {[%clk 0:00:10.9]} 56. h6 {[%clk 0:00:47.3]} 56... Nxh6 {[%clk
0:00:10.8]} 1/2-1/2

[Event "Late-Titled-Tuesday-Blitz-April-16-2024"]
[Site "Chess.com"]
[Date "2024.04.16"]
[Round "7"]
[White "Viktoker"]
[Black "PhileKhoob"]
[Result "1-0"]
[WhiteElo "2474"]
[BlackElo "2293"]
[TimeControl "180+1"]
[EndTime "15:14:37 PDT"]
[Termination "Viktoker won by resignation"]

1. e4 {[%clk 0:02:49.1]} 1... c6 {[%clk 0:03:00.3]} 2. Nf3 {[%clk 0:02:45.2]}
2... d5 {[%clk 0:03:00.7]} 3. exd5 {[%clk 0:02:46.1]} 3... cxd5 {[%clk
0:03:01.6]} 4. Ne5 {[%clk 0:02:47]} 4... Nc6 {[%clk 0:03:00.3]} 5. Bb5 {[%clk
0:02:46.1]} 5... Bd7 {[%clk 0:03:00.6]} 6. Nxd7 {[%clk 0:02:44.5]} 6... Qxd7
{[%clk 0:03:01.5]} 7. O-O {[%clk 0:02:45]} 7... a6 {[%clk 0:03:00.1]} 8. Be2
{[%clk 0:02:37.5]} 8... e5 {[%clk 0:02:59.9]} 9. Re1 {[%clk 0:02:37.2]} 9... Bd6
{[%clk 0:02:50.8]} 10. c4 {[%clk 0:02:36.3]} 10... Nf6 {[%clk 0:02:48.8]} 11.
cxd5 {[%clk 0:02:35.7]} 11... Nxd5 {[%clk 0:02:49.7]} 12. d4 {[%clk 0:02:35.9]}
12... O-O {[%clk 0:02:21.8]} 13. dxe5 {[%clk 0:02:27.1]} 13... Bxe5 {[%clk
0:02:12.3]} 14. Bf3 {[%clk 0:02:27.3]} 14... Nf6 {[%clk 0:02:00.7]} 15. Bxc6
{[%clk 0:02:09.2]} 15... Qxd1 {[%clk 0:01:53.3]} 16. Rxd1 {[%clk 0:02:10.1]}
16... bxc6 {[%clk 0:01:53.8]} 17. Nd2 {[%clk 0:02:10.3]} 17... Rfd8 {[%clk
0:01:52]} 18. Re1 {[%clk 0:02:10.3]} 18... Bxb2 {[%clk 0:01:49.5]} 19. Bxb2
{[%clk 0:02:00.7]} 19... Rxd2 {[%clk 0:01:47.6]} 20. Bxf6 {[%clk 0:01:58.3]}
20... gxf6 {[%clk 0:01:48.5]} 21. a4 {[%clk 0:01:53.8]} 21... Rb8 {[%clk
0:01:38.9]} 22. Rac1 {[%clk 0:01:52.7]} 22... Rbb2 {[%clk 0:01:37.8]} 23. Rf1
{[%clk 0:01:47.5]} 23... Rbc2 {[%clk 0:01:23.6]} 24. Rb1 {[%clk 0:01:43.2]}
24... Rd4 {[%clk 0:01:09.2]} 25. a5 {[%clk 0:01:38.3]} 25... Ra4 {[%clk
0:00:58.1]} 26. Rfe1 {[%clk 0:01:34.1]} 26... Rxa5 {[%clk 0:00:49.2]} 27. Rb3
{[%clk 0:01:34]} 27... Rb5 {[%clk 0:00:19.3]} 28. Rf3 {[%clk 0:01:28.3]} 28...
Re5 {[%clk 0:00:17.5]} 29. Ra1 {[%clk 0:01:26.5]} 29... Ra2 {[%clk 0:00:15.5]}
30. Rc1 {[%clk 0:01:23.4]} 30... f5 {[%clk 0:00:11.1]} 31. h4 {[%clk 0:01:22.9]}
31... c5 {[%clk 0:00:08.6]} 32. Rb1 {[%clk 0:01:18.9]} 32... a5 {[%clk
0:00:07.9]} 33. h5 {[%clk 0:01:19]} 33... Kg7 {[%clk 0:00:07.9]} 34. Rb6 {[%clk
0:01:18.4]} 34... Re6 {[%clk 0:00:03]} 35. Rb7 {[%clk 0:01:14.2]} 35... Kf6
{[%clk 0:00:03.3]} 36. Rc7 {[%clk 0:01:13.2]} 36... Re5 {[%clk 0:00:02.5]} 37.
Rd3 {[%clk 0:01:10.3]} 37... Kg5 {[%clk 0:00:02.6]} 38. Rxf7 {[%clk 0:01:08.6]}
38... h6 {[%clk 0:00:02.2]} 39. Rg7+ {[%clk 0:01:05.2]} 39... Kf6 {[%clk
0:00:01.7]} 40. Rg6+ {[%clk 0:01:04.6]} 40... Kf7 {[%clk 0:00:02.1]} 41. Rd7+
{[%clk 0:01:03.2]} 41... Ke8 {[%clk 0:00:01.2]} 42. Ra7 {[%clk 0:01:02.5]} 42...
Re1+ {[%clk 0:00:01.7]} 43. Kh2 {[%clk 0:01:02.6]} 43... Kf8 {[%clk 0:00:02.2]}
44. Rxh6 {[%clk 0:01:02.6]} 44... Kg8 {[%clk 0:00:02.7]} 45. Rg6+ {[%clk
0:01:03.1]} 45... Kh8 {[%clk 0:00:02.6]} 46. Rc6 {[%clk 0:01:03]} 46... Re8
{[%clk 0:00:02.2]} 47. Rxc5 {[%clk 0:01:03.4]} 47... f4 {[%clk 0:00:02.4]} 48.
f3 {[%clk 0:00:59]} 48... Rf2 {[%clk 0:00:02]} 49. Kh3 {[%clk 0:00:58.9]} 49...
Ra2 {[%clk 0:00:02]} 50. Rcxa5 {[%clk 0:00:56.1]} 50... Rg8 {[%clk 0:00:02.4]}
51. Rxa2 {[%clk 0:00:56]} 51... Rg5 {[%clk 0:00:02.2]} 52. Rb7 {[%clk
0:00:55.1]} 52... Rxh5+ {[%clk 0:00:02.3]} 53. Kg4 {[%clk 0:00:55.8]} 1-0